[Event "SVK Extraliga 2019-20"]
[Site "Slovakia"]
[Date "2019.10.19"]
[Round "1.7"]
[White "Wiewiora, Eneasz"]
[Black "Petran, Peter"]
[Result "1-0"]
[ECO "B06"]
[WhiteElo "2298"]
[BlackElo "2242"]
[Annotator "NA"]
[PlyCount "115"]
[EventDate "2019.10.19"]
[EventType "team-tourn"]
[EventCountry "SVK"]
[SourceTitle "playchess.com"]
[Source "ChessBase"]
[SourceQuality "1"]
[WhiteTeam "Dubnica"]
[BlackTeam "Slovan"]
[TimeControl "40/5400+30:1800+30"]

1. e4 {[%emt 0:00:00]} g6 {[%emt 0:00:00]} 2. d4 {[%emt 0:00:00]} Bg7 {[%emt 0:00:00]} 3. Nc3 {[%emt 0:00:00]} c6 {[%emt 0:00:00]} 4. Nf3 {[%emt 0:00:07]} d5 {[%emt 0:00:09]} 5. h3 {[%emt 0:00:06]} dxe4 {[%emt 0:00:22]} 6. Nxe4 {[%emt 0:00:06]} Nf6 {[%emt 0:00:09]} 7. Nxf6+ {[%emt 0:00:03]} exf6 {[%emt 0:00:06]} 8. Bc4 {[%emt 0:02:49]} O-O {[%emt 0:00:41]} 9. O-O {[%emt 0:00:08]} Nd7 {[%emt 0:00:36]} 10. Bf4 {[%emt 0:02:25]} b5 {[%emt 0:00:23]} 11. Bb3 {[%emt 0:00:13]} Nb6 {[%emt 0:00:06]} 12. Re1 {[%emt 0:01:15]} Nd5 {[%emt 0:01:01]} 13. Bg3 {[%emt 0:04:16]} Be6 {[%emt 0:00:10]} 14. Nd2 {[%emt 0:07:48]} a5 {[%emt 0:11:07]} 15. c4 {[%emt 0:22:40]} bxc4 {[%emt 0:01:38]} 16. Nxc4 {[%emt 0:00:05]} Qc8 {[%emt 0:04:46]} 17. Nd6 {[%emt 0:19:12]} Qd7 {[%emt 0:12:15]} 18. Ne4 {[%emt 0:01:53]} Bf5 {[%emt 0:17:22]} 19. Nc5 {[%emt 0:02:32]} Qd8 {[%emt 0:02:22]} 20. Qf3 {[%emt 0:00:29]} Ra7 {[%emt 0:01:39]} 21. Rad1 {[%emt 0:01:51]} Qa8 {[%emt 0:05:31]} 22. Bh4 {[%emt 0:08:20]} a4 {[%emt 0:03:48]} 23. Bxd5 {[%emt 0:02:09]} cxd5 {[%emt 0:00:06]} 24. g4 {[%emt 0:00:02]} Be4 {[%emt 0:02:26]} 25. Nxe4 {[%emt 0:00:13]} dxe4 {[%emt 0:00:05]} 26. Qxe4 {[%emt 0:00:18]} Qxe4 {[%emt 0:00:46]} 27. Rxe4 {[%emt 0:00:04]} Rd8 {[%emt 0:04:28]} 28. d5 {[%emt 0:03:08]} g5 {[%emt 0:04:25]} 29. Bg3 {[%emt 0:00:08]} f5 {[%emt 0:00:08]} 30. gxf5 {[%emt 0:00:09]} Bxb2 {[%emt 0:00:12]} 31. d6 {[%emt 0:02:31]} a3 {[%emt 0:01:47]} 32. h4 {[%emt 0:01:57]} h6 {[%emt 0:02:36]} 33. hxg5 {[%emt 0:01:51]} hxg5 {[%emt 0:00:07]} 34. Rg4 {[%emt 0:02:51]} f6 {[%emt 0:00:58]} 35. Kg2 {[%emt 0:05:34]} Kf7 {[%emt 0:01:09]} 36. Rc4 {[%emt 0:02:42]} Be5 {[%emt 0:06:08]} 37. Kf3 {[%emt 0:05:46]} Rdd7 {[%emt 0:06:21]} 38. Bxe5 {[%emt 0:01:08]} fxe5 {[%emt 0:00:03]} 39. Kg4 {[%emt 0:00:14]} Kf6 {[%emt 0:02:38]} 40. Rh1 {[%emt 0:02:23]} Rh7 {[%emt 0:00:31]} 41. Rxh7 {[%emt 0:16:50]} Rxh7 {[%emt 0:00:06]} 42. d7 {[%emt 0:00:45]} Rxd7 {[%emt 0:06:46]} 43. Rc6+ {[%emt 0:00:05]} Kf7 {[%emt 0:00:56]} 44. Kxg5 {[%emt 0:02:48]} Rd2 {[%emt 0:00:39]} 45. Rc7+ {[%emt 0:00:10]} Ke8 {[%emt 0:00:12]} 46. f3 {[%emt 0:03:29]} Rxa2 {[%emt 0:01:07]} 47. Ra7 {[%emt 0:00:30]} Rg2+ {[%emt 0:08:30]} 48. Kf6 {[%emt 0:00:22]} a2 {[%emt 0:00:21]} 49. Ke6 {[%emt 0:01:20]} Rd2 {[%emt 0:10:06]} 50. f6 {[%emt 0:01:46]} Rd8 {[%emt 0:00:36]} 51. Rxa2 {[%emt 0:00:28]} Rb8 {[%emt 0:00:09]} 52. Rh2 {[%emt 0:00:49]} Rb6+ {[%emt 0:00:26]} 53. Kf5 {[%emt 0:00:08]} Kf7 {[%emt 0:00:54]} 54. Rh7+ {[%emt 0:00:08]} Kg8 {[%emt 0:00:10]} 55. Kg6 {[%emt 0:01:31]} Ra6 {[%emt 0:02:45]} 56. Rb7 {[%emt 0:00:12]} Ra8 {[%emt 0:00:17]} 57. Rg7+ {[%emt 0:00:03]} Kf8 {[%emt 0:01:35]} 58. Rh7 {[%emt 0:00:04]} 1-0

[Event "SVK Extraliga 2019-20"]
[Site "Slovakia"]
[Date "2019.10.20"]
[Round "1.7"]
[White "Federic, Jozef"]
[Black "Walterova, Ema"]
[Result "1-0"]
[ECO "D41"]
[WhiteElo "2203"]
[BlackElo "1801"]
[Annotator "ChessBase"]
[PlyCount "47"]
[EventDate "2019.10.19"]
[EventType "team-tourn"]
[EventCountry "SVK"]
[SourceTitle "playchess.com"]
[Source "ChessBase"]
[SourceQuality "1"]
[WhiteTeam "Modra"]
[BlackTeam "Bratislava"]
[WhiteTeamCountry "SVK"]
[BlackTeamCountry "SVK"]
[TimeControl "40/5400+30:1800+30"]

1. d4 {[%emt 0:00:00]} d5 {[%emt 0:00:08]} 2. Nf3 {[%emt 0:00:00]} Nf6 {[%emt 0:00:00]} 3. g3 {[%emt 0:00:53]} e6 {[%emt 0:04:24]} 4. c4 {[%emt 0:01:00]} Be7 {[%emt 0:00:14]} 5. Bg2 {[%emt 0:00:18]} c5 {[%emt 0:02:53]} 6. cxd5 {[%emt 0:03:01]} Nxd5 {[%emt 0:04:07]} 7. O-O {[%emt 0:00:26]} O-O {[%emt 0:02:31]} 8. e4 {[%emt 0:03:13]} Nf6 {[%emt 0:09:51]} 9. Nc3 {[%emt 0:00:45]} Nc6 {[%emt 0:12:52]} 10. dxc5 {[%emt 0:14:42]} Bxc5 {[%emt 0:10:55]} 11. Bf4 {[%emt 0:05:42]} Qe7 {[%emt 0:07:24]} 12. e5 {[%emt 0:04:56]} Nh5 {[%emt 0:07:39]} 13. Bg5 {[%emt 0:04:40]} f6 {[%emt 0:01:47]} 14. exf6 {[%emt 0:01:36]} gxf6 {[%emt 0:04:12]} 15. Bh6 {[%emt 0:00:45]} Rd8 {[%emt 0:00:45]} 16. Qe2 {[%emt 0:02:15]} Bd7 {[%emt 0:08:04]} 17. Rfe1 {[%emt 0:20:44]} Rac8 {[%emt 0:03:39]} 18. Rad1 {[%emt 0:02:29]} Ng7 {[%emt 0:08:49]} 19. Bh3 {[%emt 0:05:11]} Re8 {[%emt 0:05:51]} 20. Ne4 {[%emt 0:03:06]} Rcd8 {[%emt 0:02:51]} 21. Qc4 {[%emt 0:06:29]} Bb4 {[%emt 0:00:54]} 22. Nc3 {[%emt 0:00:39]} Qc5 {[%emt 0:00:37]} 23. Qg4 {[%emt 0:00:46]} Qe7 {[%emt 0:00:24]} 24. Nd5 {[%emt 0:02:25]} 1-0

[Event "SVK Extraliga 2019-20"]
[Site "Slovakia"]
[Date "2019.10.19"]
[Round "1.7"]
[White "Horvath, Mario"]
[Black "Najgebauer, Szemjon"]
[Result "1/2-1/2"]
[ECO "A40"]
[WhiteElo "2191"]
[BlackElo "2186"]
[Annotator "NA"]
[PlyCount "71"]
[EventDate "2019.10.19"]
[EventType "team-tourn"]
[EventCountry "SVK"]
[SourceTitle "playchess.com"]
[Source "ChessBase"]
[SourceQuality "1"]
[WhiteTeam "Podhajska"]
[BlackTeam "Kosice"]
[TimeControl "40/5400+30:1800+30"]

1. d4 {[%emt 0:00:00]} Nf6 {[%emt 0:00:15]} 2. Nf3 {[%emt 0:00:32]} g6 {[%emt 0:01:13]} 3. Nbd2 {[%emt 0:03:28]} d5 {[%emt 0:01:50]} 4. e3 {[%emt 0:02:42]} Bg7 {[%emt 0:01:52]} 5. Bd3 {[%emt 0:00:57]} c5 {[%emt 0:02:47]} 6. dxc5 {[%emt 0:09:31]} Nfd7 {[%emt 0:06:19]} 7. Nb3 {[%emt 0:06:15]} O-O {[%emt 0:11:37]} 8. O-O {[%emt 0:02:31]} Qc7 {[%emt 0:02:32]} 9. e4 {[%emt 0:15:27]} dxe4 {[%emt 0:14:04]} 10. Bxe4 {[%emt 0:01:16]} Nxc5 {[%emt 0:00:32]} 11. Nxc5 {[%emt 0:00:17]} Qxc5 {[%emt 0:00:07]} 12. c3 {[%emt 0:01:36]} Nd7 {[%emt 0:03:36]} 13. Be3 {[%emt 0:07:08]} Qc7 {[%emt 0:00:51]} 14. Qe2 {[%emt 0:00:37]} Nf6 {[%emt 0:04:35]} 15. Bc2 {[%emt 0:06:29]} b6 {[%emt 0:03:19]} 16. Bd4 {[%emt 0:01:30]} Bb7 {[%emt 0:04:17]} 17. Rfe1 {[%emt 0:04:22]} e6 {[%emt 0:11:37]} 18. Be5 {[%emt 0:14:28]} Qc6 {[%emt 0:03:51]} 19. Qf1 {[%emt 0:01:11]} Rad8 {[%emt 0:06:08]} 20. Nd4 {[%emt 0:00:37]} Qc8 {[%emt 0:00:28]} 21. a4 {[%emt 0:01:03]} Ng4 {[%emt 0:06:07]} 22. Bxg7 {[%emt 0:00:37]} Kxg7 {[%emt 0:00:06]} 23. h3 {[%emt 0:01:37]} Nf6 {[%emt 0:05:42]} 24. Qe2 {[%emt 0:06:13]} Rfe8 {[%emt 0:01:08]} 25. f4 {[%emt 0:01:38]} Qc7 {[%emt 0:01:13]} 26. Qf2 {[%emt 0:01:12]} Nd5 {[%emt 0:01:05]} 27. g3 {[%emt 0:01:03]} Nf6 {[%emt 0:00:20]} 28. Qe3 {[%emt 0:01:01]} Qc5 {[%emt 0:00:53]} 29. Kh2 {[%emt 0:01:28]} h5 {[%emt 0:01:48]} 30. a5 {[%emt 0:00:43]} Rh8 {[%emt 0:00:47]} 31. axb6 {[%emt 0:04:30]} axb6 {[%emt 0:00:49]} 32. Qe5 {[%emt 0:00:54]} Rd5 {[%emt 0:01:21]} 33. Qe3 {[%emt 0:00:16]} Rd6 {[%emt 0:01:22]} 34. Qe5 {[%emt 0:00:37]} Rd5 {[%emt 0:00:06]} 35. Qe3 {[%emt 0:00:03]} Rd6 {[%emt 0:01:30]} 36. Qe5 {[%emt 0:00:26]} 1/2-1/2

[Event "SVK Extraliga 2019-20"]
[Site "Slovakia"]
[Date "2019.10.19"]
[Round "1.7"]
[White "Kantorik, Marian"]
[Black "Hros, Roman"]
[Result "1/2-1/2"]
[ECO "A41"]
[WhiteElo "2165"]
[BlackElo "2196"]
[Annotator "NA"]
[PlyCount "131"]
[EventDate "2019.10.19"]
[EventType "team-tourn"]
[EventCountry "SVK"]
[SourceTitle "playchess.com"]
[Source "ChessBase"]
[SourceQuality "1"]
[WhiteTeam "Dunajov"]
[BlackTeam "Liptovska"]
[TimeControl "40/5400+30:1800+30"]

1. d4 {[%emt 0:00:00]} d6 {[%emt 0:04:36]} 2. c4 {[%emt 0:00:00]} e5 {[%emt 0:00:25]} 3. Nf3 {[%emt 0:00:00]} Nc6 {[%emt 0:01:11]} 4. Nc3 {[%emt 0:01:10]} exd4 {[%emt 0:06:31]} 5. Nxd4 {[%emt 0:00:16]} g6 {[%emt 0:00:28]} 6. e4 {[%emt 0:01:46]} Bg7 {[%emt 0:00:32]} 7. Be3 {[%emt 0:00:12]} Nge7 {[%emt 0:06:00]} 8. Be2 {[%emt 0:02:15]} O-O {[%emt 0:00:56]} 9. O-O {[%emt 0:00:05]} f5 {[%emt 0:07:34]} 10. f3 {[%emt 0:06:06] A42: Modern Defence: Averbakh Variation} (10. Qd2 Kh8 11. Nxc6 Nxc6 12. Bg5 Qe8 13. Bd3 Qf7 14. Nd5 Ne5 15. exf5 Bxf5 16. Be2 Rae8 17. Rae1 Be4 18. f3 Bxd5 19. Qxd5 Qxd5 20. cxd5 {½-½ (61) Keymer,V (2500)-Lagarde,M (2604) chess.com INT 2019}) 10... Re8 {[%emt 0:16:50]} 11. Qd2 {[%emt 0:04:31]} Nxd4 $146 {[%emt 0:18:14]} ({Predecessor:} 11... Ne5 12. Rad1 N7c6 13. Nd5 Nxd4 14. Bxd4 Be6 15. f4 Bxd5 16. cxd5 Nf7 17. Bxg7 Kxg7 18. exf5 gxf5 {1-0 (29) Rausch,S (2295)-Boehm,E (2205) Germany 1996}) 12. Bxd4 {[%emt 0:00:15]} Bxd4+ {[%emt 0:00:36]} 13. Qxd4 {[%emt 0:00:08]} Nc6 {[%emt 0:00:42]} 14. Qd2 {[%emt 0:00:54]} fxe4 {[%emt 0:01:05]} 15. Nxe4 {[%emt 0:03:55]} Bf5 {[%emt 0:06:57]} 16. Nc3 {[%emt 0:08:32]} Qe7 {[%emt 0:02:35]} 17. Rf2 {[%emt 0:02:35]} Qg7 {[%emt 0:00:55]} 18. Rd1 {[%emt 0:01:10]} Be6 {[%emt 0:03:51]} 19. f4 {[%emt 0:03:51]} Rf8 {[%emt 0:01:46]} 20. b3 {[%emt 0:00:46]} Rae8 {[%emt 0:04:20]} 21. Bf3 {[%emt 0:01:39]} Nd8 {[%emt 0:02:46]} 22. Re2 {[%emt 0:04:38]} Bf7 {[%emt 0:01:27]} 23. Rde1 {[%emt 0:03:26]} Rxe2 {[%emt 0:00:51]} 24. Rxe2 {[%emt 0:00:16]} Re8 {[%emt 0:03:01]} 25. Rxe8+ {[%emt 0:01:58]} Bxe8 {[%emt 0:00:01]} 26. c5 {[%emt 0:00:17]} Nf7 $16 {[%emt 0:04:32]} 27. Bxb7 {[%emt 0:03:22]} dxc5 {[%emt 0:00:01]} 28. Ne2 {[%emt 0:02:45]} Nd6 {[%emt 0:00:56]} 29. Bd5+ {[%emt 0:00:08]} Kh8 {[%emt 0:01:54]} 30. Qc3 {[%emt 0:01:42]} Bb5 {[%emt 0:00:42]} 31. Qxg7+ {[%emt 0:02:07]} Kxg7 {[%emt 0:00:01]} 32. Nc3 {[%emt 0:00:10]} a5 {[%emt 0:00:38]} 33. Kf2 {[%emt 0:01:04]} Kf6 {[%emt 0:01:07]} 34. Kf3 {[%emt 0:05:38]} Ba6 {[%emt 0:02:17]} 35. Ne4+ {[%emt 0:00:48]} Nxe4 {[%emt 0:00:27]} 36. Kxe4 {[%emt 0:01:58]} h5 {[%emt 0:00:37]} 37. g3 {[%emt 0:03:53]} Bc8 {[%emt 0:00:29]} 38. Kd3 {[%emt 0:03:10]} Ba6+ {[%emt 0:00:19]} 39. Ke3 {[%emt 0:00:17]} Bc8 {[%emt 0:00:34]} 40. Kd3 {[%emt 0:04:48]} Ba6+ {[%emt 0:00:15]} 41. Ke4 {[%emt 0:30:06]} Bf1 {[%emt 0:07:20]} 42. Kf3 {[%emt 0:00:00]} Bh3 {[%emt 0:05:01]} 43. Bc4 {[%emt 0:00:00]} Bf5 {[%emt 0:00:14]} 44. Ke3 {[%emt 0:00:00]} Bc8 {[%emt 0:04:53]} 45. Bb5 {[%emt 0:00:00]} Bf5 {[%emt 0:01:41]} 46. Kd2 {[%emt 0:00:00]} Be6 {[%emt 0:01:40]} 47. Bf1 {[%emt 0:00:00]} Ke7 {[%emt 0:03:58]} 48. Kd3 {[%emt 0:02:39]} Kd6 {[%emt 0:02:15]} 49. Ke3 {[%emt 0:00:47]} Ke7 {[%emt 0:01:57]} 50. Ke4 {[%emt 0:04:19]} Kd6 {[%emt 0:00:18]} 51. Ke3 {[%emt 0:01:11]} Ke7 {[%emt 0:00:25]} 52. Bc4 {[%emt 0:00:25]} Bd7 {[%emt 0:00:52]} 53. Ke4 {[%emt 0:02:15]} Kd6 {[%emt 0:00:01]} 54. Ke3 {[%emt 0:02:30]} Ke7 {[%emt 0:00:38]} 55. Bd5 {[%emt 0:01:04]} Bh3 {[%emt 0:01:36]} 56. Be4 {[%emt 0:02:23]} Kf6 {[%emt 0:00:05]} 57. Kd3 {[%emt 0:01:30]} Bf1+ {[%emt 0:01:36]} 58. Kc3 {[%emt 0:01:12]} Ba6 {[%emt 0:00:07]} 59. h3 {[%emt 0:01:23]} Bf1 {[%emt 0:01:04]} 60. h4 {[%emt 0:02:19]} Ba6 {[%emt 0:00:22]} 61. Bd3 {[%emt 0:01:58]} Bc8 {[%emt 0:02:38]} 62. Kc4 {[%emt 0:00:20]} Ba6+ {[%emt 0:00:03]} 63. Kc3 {[%emt 0:00:07]} Bc8 {[%emt 0:00:03]} 64. a4 {[%emt 0:05:19]} Be6 {[%emt 0:01:28]} 65. Bc4 {[%emt 0:00:24]} Bc8 {[%emt 0:00:29]} 66. Bd3 {[%emt 0:00:20] Ke5} 1/2-1/2

[Event "SVK Extraliga 2019-20"]
[Site "Slovakia"]
[Date "2019.10.19"]
[Round "1.8"]
[White "Jancovic, Peter"]
[Black "Zpevak, Pavel"]
[Result "1/2-1/2"]
[ECO "A46"]
[WhiteElo "2308"]
[BlackElo "2340"]
[Annotator "NA"]
[PlyCount "29"]
[EventDate "2019.10.19"]
[EventType "team-tourn"]
[EventCountry "SVK"]
[SourceTitle "playchess.com"]
[Source "ChessBase"]
[SourceQuality "1"]
[WhiteTeam "Slovan"]
[BlackTeam "Dubnica"]
[TimeControl "40/5400+30:1800+30"]

1. d4 {[%emt 0:00:00]} Nf6 {[%emt 0:00:00]} 2. Nf3 {[%emt 0:00:03]} e6 {[%emt 0:00:18]} 3. g3 {[%emt 0:00:26]} b5 {[%emt 0:03:07]} 4. Bg2 {[%emt 0:00:09]} Bb7 {[%emt 0:00:37]} 5. O-O {[%emt 0:00:12]} c5 {[%emt 0:02:07]} 6. a4 {[%emt 0:05:59]} b4 {[%emt 0:01:48]} 7. c3 {[%emt 0:02:02]} Na6 {[%emt 0:11:00]} 8. Nbd2 {[%emt 0:04:26]} Be7 {[%emt 0:16:49]} 9. Re1 Rc8 {[%emt 0:10:57]} 10. c4 {[%emt 0:32:46]} cxd4 {[%emt 0:00:30]} 11. Nxd4 {[%emt 0:00:30]} Bxg2 {[%emt 0:01:06]} 12. Kxg2 {[%emt 0:00:05]} Nc5 {[%emt 0:00:41]} 13. b3 {[%emt 0:13:32]} O-O {[%emt 0:04:14]} 14. Bb2 {[%emt 0:03:15]} Qb6 15. Qc2 {[%emt 0:04:15]} 1/2-1/2

[Event "SVK Extraliga 2019-20"]
[Site "Slovakia"]
[Date "2019.10.19"]
[Round "1.8"]
[White "Kusiak, Matej"]
[Black "Zvarik, Martin"]
[Result "0-1"]
[ECO "C46"]
[WhiteElo "2256"]
[BlackElo "2314"]
[Annotator "NA"]
[PlyCount "133"]
[EventDate "2019.10.19"]
[EventType "team-tourn"]
[EventCountry "SVK"]
[SourceTitle "playchess.com"]
[Source "ChessBase"]
[SourceQuality "1"]
[WhiteTeam "Prakovce"]
[BlackTeam "Zilina"]
[TimeControl "40/5400+30:1800+30"]

1. e4 {[%emt 0:00:00]} e5 {[%emt 0:00:55]} 2. Nf3 {[%emt 0:00:09]} Nc6 {[%emt 0:00:33]} 3. Nc3 {[%emt 0:00:14]} g6 {[%emt 0:02:23]} 4. d4 {[%emt 0:00:45]} exd4 {[%emt 0:00:21]} 5. Nxd4 {[%emt 0:00:05]} Bg7 {[%emt 0:00:22]} 6. Be3 {[%emt 0:00:19]} Nge7 {[%emt 0:07:52]} 7. Qd2 {[%emt 0:02:49]} d6 {[%emt 0:15:11]} 8. O-O-O {[%emt 0:01:55]} Be6 {[%emt 0:03:10]} 9. Nxe6 {[%emt 0:05:09]} fxe6 {[%emt 0:04:44]} 10. f4 {[%emt 0:00:32]} Qd7 {[%emt 0:02:33]} 11. g3 {[%emt 0:00:21]} O-O-O {[%emt 0:06:22]} 12. Bh3 {[%emt 0:01:20]} Kb8 {[%emt 0:01:45]} 13. Nd5 {[%emt 0:01:25]} Nc8 {[%emt 0:01:12]} 14. Rhe1 {[%emt 0:06:21]} Qf7 {[%emt 0:04:48]} 15. Nb4 {[%emt 0:14:32]} N6e7 {[%emt 0:11:02]} 16. c3 {[%emt 0:07:00]} Rhe8 {[%emt 0:02:46]} 17. Qe2 {[%emt 0:08:36]} Nb6 {[%emt 0:05:01]} 18. Bxb6 {[%emt 0:11:22]} axb6 {[%emt 0:00:40]} 19. Qc4 {[%emt 0:00:24]} Nc8 {[%emt 0:02:32]} 20. Kb1 {[%emt 0:03:42]} Re7 {[%emt 0:03:11]} 21. Qb3 {[%emt 0:03:32]} Qe8 {[%emt 0:04:15]} 22. Bf1 {[%emt 0:04:44]} c6 {[%emt 0:02:28]} 23. e5 {[%emt 0:08:33]} dxe5 {[%emt 0:04:06]} 24. Rxd8 {[%emt 0:00:48]} Qxd8 {[%emt 0:00:07]} 25. fxe5 {[%emt 0:00:31]} Rd7 {[%emt 0:03:09]} 26. a4 {[%emt 0:04:04]} Bxe5 {[%emt 0:06:29]} 27. Ka2 {[%emt 0:01:49]} Qf6 {[%emt 0:03:49]} 28. Bc4 {[%emt 0:06:46]} Rd2 {[%emt 0:00:57]} 29. Rf1 {[%emt 0:03:39]} Rf2 {[%emt 0:01:02]} 30. Rxf2 {[%emt 0:00:11]} Qxf2 {[%emt 0:00:04]} 31. Nd3 {[%emt 0:00:26]} Qe3 {[%emt 0:00:27]} 32. Nxe5 {[%emt 0:00:39]} Qxe5 {[%emt 0:00:07]} 33. Bxe6 {[%emt 0:00:04]} Ne7 {[%emt 0:01:12]} 34. Bg8 {[%emt 0:01:39]} Kc7 {[%emt 0:00:24]} 35. Qf7 {[%emt 0:01:09]} h5 {[%emt 0:00:57]} 36. Qe6 {[%emt 0:01:00]} Qxe6+ {[%emt 0:00:19]} 37. Bxe6 {[%emt 0:00:02]} Kd6 {[%emt 0:00:09]} 38. Bf7 {[%emt 0:00:25]} Ke5 {[%emt 0:00:28]} 39. Be8 {[%emt 0:01:48]} Ke4 {[%emt 0:00:27]} 40. Bd7 {[%emt 0:00:33]} Kf3 {[%emt 0:00:22]} 41. Kb3 {[%emt 0:23:51]} Kg2 {[%emt 0:00:28]} 42. h3 {[%emt 0:00:15]} Kxg3 {[%emt 0:00:31]} 43. Kc4 {[%emt 0:00:05]} Nf5 {[%emt 0:21:15]} 44. Kd3 {[%emt 0:01:03]} Kf4 {[%emt 0:02:58]} 45. b4 {[%emt 0:00:30]} Ke5 {[%emt 0:02:53]} 46. Be8 {[%emt 0:01:43]} Ne7 {[%emt 0:01:21]} 47. Kc4 {[%emt 0:01:48]} h4 {[%emt 0:01:48]} 48. Bd7 {[%emt 0:00:43]} Kd6 {[%emt 0:01:24]} 49. Bg4 {[%emt 0:00:15]} Nf5 {[%emt 0:00:40]} 50. Kd3 {[%emt 0:00:22]} Ke5 {[%emt 0:00:17]} 51. Bf3 {[%emt 0:03:58]} Nd6 {[%emt 0:01:01]} 52. a5 {[%emt 0:01:05]} bxa5 {[%emt 0:01:24]} 53. bxa5 {[%emt 0:00:02]} Kf4 {[%emt 0:00:49]} 54. Bg4 {[%emt 0:00:38]} Ke5 {[%emt 0:00:17]} 55. Bf3 {[%emt 0:00:06]} g5 {[%emt 0:00:36]} 56. Bg4 {[%emt 0:01:09]} Kd5 {[%emt 0:00:39]} 57. Be2 {[%emt 0:00:51]} Nf5 {[%emt 0:00:50]} 58. Bg4 {[%emt 0:00:37]} Ne7 {[%emt 0:00:31]} 59. Bd1 {[%emt 0:00:31]} Ng6 {[%emt 0:00:35]} 60. Bb3+ {[%emt 0:00:20]} Ke5 {[%emt 0:00:08]} 61. Kc4 {[%emt 0:00:34]} g4 {[%emt 0:00:44]} 62. Bd1 {[%emt 0:00:37]} gxh3 {[%emt 0:00:24]} 63. Bf3 {[%emt 0:00:08]} Kd6 {[%emt 0:00:38]} 64. Kd4 {[%emt 0:00:15]} h2 {[%emt 0:00:20]} 65. c4 {[%emt 0:00:30]} Nf4 {[%emt 0:00:26]} 66. Ke3 {[%emt 0:00:31]} Nh5 {[%emt 0:00:23]} 67. Kd4 {Ke5+} 0-1

[Event "SVK Extraliga 2019-20"]
[Site "Slovakia"]
[Date "2019.10.19"]
[Round "1.8"]
[White "Motycakova, Monika"]
[Black "Magat, Jozef"]
[Result "1/2-1/2"]
[ECO "B00"]
[WhiteElo "2126"]
[BlackElo "2103"]
[Annotator "RC"]
[PlyCount "28"]
[EventDate "2019.10.19"]
[EventType "team-tourn"]
[EventCountry "SVK"]
[SourceTitle "playchess.com"]
[Source "ChessBase"]
[SourceQuality "1"]
[WhiteTeam "Liptovska"]
[BlackTeam "Dunajov"]
[TimeControl "40/5400+30:1800+30"]

1. e4 {[%emt 0:00:00]} Nc6 {[%emt 0:00:00]} 2. d4 {[%emt 0:01:12]} d5 {[%emt 0:00:25]} 3. e5 {[%emt 0:03:12]} Bf5 {[%emt 0:01:23]} 4. Nf3 {[%emt 0:01:31]} e6 {[%emt 0:00:59]} 5. Be2 {[%emt 0:02:16]} f6 {[%emt 0:03:40]} 6. Bf4 {[%emt 0:07:50]} fxe5 {[%emt 0:02:20]} 7. Nxe5 {[%emt 0:01:31]} Nxe5 {[%emt 0:01:05]} 8. Bxe5 {[%emt 0:00:14]} Nf6 {[%emt 0:01:42]} 9. Nd2 {[%emt 0:01:53]} Bd6 {[%emt 0:02:49]} 10. Nf3 {[%emt 0:01:26]} O-O {[%emt 0:01:00]} 11. O-O {[%emt 0:01:37]} Ng4 {[%emt 0:06:58]} 12. Bg3 {[%emt 0:05:57]} Bxg3 {[%emt 0:12:28]} 13. hxg3 {[%emt 0:00:16]} c6 {[%emt 0:03:16]} 14. Qd2 {[%emt 0:10:00]} Qd6 {[%emt 0:02:20]} 1/2-1/2

[Event "SVK Extraliga 2019-20"]
[Site "Slovakia"]
[Date "2019.10.19"]
[Round "1.8"]
[White "Tropp, Lukas"]
[Black "Szucs, Vladimir"]
[Result "1-0"]
[ECO "C11"]
[WhiteElo "2106"]
[BlackElo "2158"]
[Annotator "NA"]
[PlyCount "55"]
[EventDate "2019.10.19"]
[EventType "team-tourn"]
[EventCountry "SVK"]
[SourceTitle "playchess.com"]
[Source "ChessBase"]
[SourceQuality "1"]
[WhiteTeam "Kosice"]
[BlackTeam "Podhajska"]
[TimeControl "40/5400+30:1800+30"]

1. e4 {[%emt 0:00:00]} e6 {[%emt 0:00:21]} 2. Nf3 {[%emt 0:00:37]} d5 {[%emt 0:00:11]} 3. Nc3 {[%emt 0:03:23]} Nf6 {[%emt 0:00:21]} 4. e5 {[%emt 0:01:28]} Nfd7 {[%emt 0:00:49]} 5. d4 {[%emt 0:01:17]} c5 {[%emt 0:00:09]} 6. Bg5 {[%emt 0:03:19]} Qb6 {[%emt 0:08:37]} 7. dxc5 {[%emt 0:09:36]} Nxc5 {[%emt 0:03:59]} 8. Bb5+ {[%emt 0:16:55]} Bd7 {[%emt 0:03:41]} 9. a4 {[%emt 0:27:20]} a6 {[%emt 0:06:08]} 10. Bxd7+ {[%emt 0:05:48]} Ncxd7 {[%emt 0:00:23]} 11. O-O {[%emt 0:00:38]} Nc6 {[%emt 0:05:23]} 12. Rb1 {[%emt 0:10:20]} Bc5 {[%emt 0:05:39]} 13. b4 {[%emt 0:01:22]} Be7 {[%emt 0:07:42]} 14. b5 {[%emt 0:02:48]} Na5 {[%emt 0:07:12]} 15. Bxe7 {[%emt 0:00:52]} Kxe7 {[%emt 0:00:06]} 16. bxa6 {[%emt 0:00:44]} Qxa6 {[%emt 0:00:24]} 17. Nb5 {[%emt 0:00:35]} Rac8 {[%emt 0:06:51]} 18. Qd2 {[%emt 0:00:25]} Nc4 {[%emt 0:07:21]} 19. Qg5+ {[%emt 0:01:34]} Kf8 {[%emt 0:01:22]} 20. Rb4 {[%emt 0:03:10]} h6 {[%emt 0:02:51]} 21. Qf4 {[%emt 0:01:19]} g5 {[%emt 0:01:34]} 22. Qg3 {[%emt 0:01:31]} Nc5 {[%emt 0:03:19]} 23. Rxc4 {[%emt 0:01:35]} dxc4 {[%emt 0:00:15]} 24. Nd6 {[%emt 0:00:08]} Rd8 {[%emt 0:04:17]} 25. Nd4 {[%emt 0:00:39]} f5 {[%emt 0:05:05]} 26. Qa3 {[%emt 0:02:35]} Qb6 {[%emt 0:06:20]} 27. a5 {[%emt 0:01:29]} Qc7 {[%emt 0:00:33]} 28. Qxc5 {[%emt 0:00:31]} 1-0